fUSD/lending_fUSD_20251024
["ID","MTS","AMOUNT","RATE_DAILY","PERIOD"]
[392240321,1761275441108,-500.0,0.00041095,30]
[392240322,1761275441118,-511.2,0.00041095,30]
[392240323,1761275441127,-592.69,0.00041095,30]
[392240324,1761275441137,-759.21,0.00041095,30]
[392240325,1761275441146,-500.0,0.00041095,30]
[392240326,1761275441156,-500.0,0.00041095,30]
[392240327,1761275441165,-500.0,0.00041095,30]
[392240328,1761275441175,-500.0,0.00041095,30]
[392240329,1761275441185,-500.0,0.00041095,30]
[392240330,1761275441194,-500.0,0.00041095,30]
[392240331,1761275441204,-500.0,0.00041095,30]
[392240332,1761275441213,-511.63,0.00041095,30]
[392240333,1761275441223,-500.0,0.00041095,30]
[392240334,1761275441233,-500.0,0.00041095,30]
[392240335,1761275441242,-836.31,0.00041095,30]
[392240336,1761275441251,-519.75,0.00041095,30]
[392240337,1761275441261,-500.0,0.00041095,30]
[392240338,1761275441270,-588.65,0.00041095,30]
[392240339,1761275441279,-500.0,0.00041095,30]
[392240340,1761275441289,-500.0,0.00041095,30]
[392240341,1761275441298,-728.72,0.00041095,30]
[392240342,1761275441307,-500.0,0.00041095,30]
[392240343,1761275441317,-589.97,0.00041095,30]
[392240344,1761275441326,-500.0,0.00041095,30]
[392240345,1761275441336,-869.43,0.00041095,30]
[392240346,1761275441345,-500.0,0.00041095,30]
[392240347,1761275441354,-500.0,0.00041095,30]
[392240348,1761275441363,-500.0,0.00041095,30]
[392240349,1761275441373,-500.0,0.00041095,30]
[392240350,1761275441382,-500.0,0.00041095,30]
[392240351,1761275441392,-500.0,0.00041095,30]
[392240352,1761275441401,-500.0,0.00041095,30]
[392240353,1761275441411,-500.0,0.00041095,30]
[392240354,1761275441422,-500.0,0.00041095,30]
[392240355,1761275441431,-628.7,0.00041095,30]
[392240356,1761275441441,-500.0,0.00041095,30]
[392240357,1761275441451,-500.0,0.00041095,30]
[392240358,1761275441460,-500.0,0.00041095,30]
[392240359,1761275441469,-618.5,0.00041095,30]
[392240360,1761275441478,-815.3,0.00041095,30]
[392240361,1761275441487,-903.06,0.00041095,30]
[392240362,1761275441497,-500.0,0.00041095,30]
[392240363,1761275441506,-500.0,0.00041095,30]
[392240364,1761275441515,-514.02341999,0.00041095,30]
[392240365,1761275441524,-521.39840013,0.00041095,30]
[392240366,1761275441534,-581.71,0.00041095,30]
[392240367,1761275441543,-549.2,0.00041095,30]
[392240368,1761275441552,-500.0,0.00041095,30]
[392240369,1761275441562,-500.0,0.00041095,30]
[392240370,1761275441572,-807.36,0.00041095,30]
[392240371,1761275441582,-500.0,0.00041095,30]
[392240372,1761275441591,-620.07,0.00041095,30]
[392240373,1761275441601,-500.0,0.00041095,30]
[392240374,1761275441611,-500.0,0.00041095,30]
[392240375,1761275441621,-610.19,0.00041095,30]
[392240376,1761275441631,-932.74,0.00041095,30]
[392240377,1761275441640,-500.0,0.00041095,30]
[392240378,1761275441650,-859.36,0.00041095,30]
[392240379,1761275441659,-500.0,0.00041095,30]
[392240380,1761275441669,-511.98,0.00041095,30]
[392240381,1761275441679,-500.0,0.00041095,30]
[392240382,1761275441688,-617.99,0.00041095,30]
[392240383,1761275441698,-500.0,0.00041095,30]
[392240384,1761275441708,-500.0,0.00041095,30]
[392240385,1761275441718,-544.88,0.00041095,30]
[392240386,1761275441729,-761.81,0.00041095,30]
[392240387,1761275441739,-500.0,0.00041095,30]
[392240388,1761275441750,-500.0,0.00041095,30]
[392240389,1761275441761,-500.0,0.00041095,30]
[392240390,1761275441771,-500.0,0.00041095,30]
[392240391,1761275441780,-500.0,0.00041095,30]
[392240392,1761275441790,-1115.08,0.00041095,30]
[392240393,1761275441799,-500.0,0.00041095,30]
[392240394,1761275441808,-986.78,0.00041095,30]
[392240395,1761275441818,-500.0,0.00041095,30]
[392240396,1761275441827,-500.0,0.00041095,30]
[392240397,1761275441836,-500.0,0.00041095,30]
[392240398,1761275441846,-500.0,0.00041095,30]
[392240399,1761275441855,-819.64,0.00041095,30]
[392240400,1761275441864,-500.0,0.00041095,30]
[392240401,1761275441874,-965.76,0.00041095,30]
[392240402,1761275441883,-500.0,0.00041095,30]
[392240403,1761275441892,-500.0,0.00041095,30]
[392240404,1761275441901,-808.54,0.00041095,30]
[392240405,1761275441910,-500.0,0.00041095,30]
[392240406,1761275441920,-775.79,0.00041095,30]
[392240407,1761275441929,-500.0,0.00041095,30]
[392240408,1761275441939,-500.0,0.00041095,30]
[392240409,1761275441948,-500.0,0.00041095,30]
[392240410,1761275441958,-500.0,0.00041095,30]
[392240411,1761275441968,-500.0,0.00041095,30]
[392240412,1761275441977,-500.0,0.00041095,30]
[392240413,1761275441987,-500.0,0.00041095,30]
[392240414,1761275441996,-500.0,0.00041095,30]
[392240415,1761275442006,-500.0,0.00041095,30]
[392240416,1761275442015,-1113.27,0.00041095,30]
[392240417,1761275442025,-500.0,0.00041095,30]
[392240418,1761275442035,-500.0,0.00041095,30]
[392240419,1761275442044,-608.2,0.00041095,30]
[392240420,1761275442054,-227.599346,0.00041095,120]
[392240421,1761275442063,-548.13,0.00041095,30]
[392240422,1761275442073,-500.0,0.00041095,30]
[392240423,1761275442083,-727.25,0.00041095,30]
[392240424,1761275442093,-500.0,0.00041095,30]
[392240425,1761275442103,-500.0,0.00041095,30]
[392240426,1761275442113,-723.32,0.00041095,30]
[392240427,1761275442123,-500.0,0.00041095,30]
[392240428,1761275442132,-151.0,0.00041095,120]
[392240429,1761275442142,-500.0,0.00041095,30]
[392240430,1761275442151,-500.0,0.00041095,120]
[392240431,1761275442241,-500.0,0.00041095,30]
[392240432,1761275442251,-151.0,0.00041095,120]
[392240433,1761275442260,-500.0,0.00041095,30]
[392240434,1761275442269,-220.684563,0.00041095,120]
[392240435,1761275442280,-506.48,0.00041095,30]
[392240436,1761275442289,-184.44979754,0.00041095,30]
[392240437,1761275442299,-500.0,0.00041095,30]
[392240438,1761275442308,-500.0,0.00041095,30]
[392240439,1761275442317,-976.11,0.00041095,30]
[392240440,1761275442326,-500.0,0.00041095,30]
[392240441,1761275442335,-500.0,0.00041095,30]
[392240442,1761275442346,-668.91,0.00041095,30]
[392240443,1761275442356,-505.65281485,0.00041095,30]
[392240444,1761275442366,-500.0,0.00041095,30]
[392240445,1761275442375,-500.0,0.00041095,30]
[392240446,1761275442384,-500.0,0.00041095,30]
[392240447,1761275442393,-500.0,0.00041095,30]
[392240448,1761275442403,-500.0,0.00041095,30]
[392240449,1761275442411,-500.0,0.00041095,30]
[392240450,1761275442424,-500.0,0.00041095,30]
[392240451,1761275442433,-500.0,0.00041095,30]
[392240452,1761275442442,-500.0,0.00041095,30]
[392240453,1761275442451,-709.92,0.00041095,30]
[392240454,1761275442460,-500.0,0.00041095,30]
[392240455,1761275442470,-500.0,0.00041095,30]
[392240456,1761275442479,-565.0,0.00041095,30]
[392240457,1761275442488,-500.0,0.00041095,30]
[392240458,1761275442500,-717.39,0.00041095,30]
[392240459,1761275442509,-500.0,0.00041095,30]
[392240460,1761275442518,-500.0,0.00041095,30]
[392240461,1761275442528,-500.0,0.00041095,30]
[392240462,1761275442537,-674.63,0.00041095,30]
[392240463,1761275442546,-799.19,0.00041095,30]
[392240464,1761275442555,-537.63,0.00041095,30]
[392240466,1761275442565,-500.0,0.00041095,30]
[392240467,1761275442579,-860.58,0.00041095,30]
[392240469,1761275442588,-500.0,0.00041095,30]
[392240470,1761275442597,-500.0,0.00041095,30]
[392240471,1761275442607,-783.66,0.00041095,30]
[392240472,1761275442616,-500.0,0.00041095,30]
[392240473,1761275442626,-500.0,0.00041095,30]
[392240475,1761275442635,-530.61,0.00041095,30]
[392240476,1761275442644,-190.22359876,0.00041095,30]
[392240477,1761275442653,-500.0,0.00041095,30]
[392240478,1761275442662,-500.0,0.00041095,30]
[392240479,1761275442672,-500.0,0.00041095,30]
[392240480,1761275442681,-500.0,0.00041095,30]
[392240481,1761275442690,-153.295162,0.00041095,120]
[392240482,1761275442699,-500.0,0.00041095,30]
[392240483,1761275442708,-500.0,0.00041095,30]
[392240484,1761275442717,-500.0,0.00041095,30]
[392240485,1761275442726,-752.73,0.00041095,30]
[392240486,1761275442736,-500.0,0.00041095,30]
[392240487,1761275442745,-500.0,0.00041095,30]
[392240488,1761275442755,-638.02,0.00041095,30]
[392240489,1761275442765,-500.0,0.00041095,30]
[392240490,1761275442774,-822.94,0.00041095,30]
[392240491,1761275442785,-500.0,0.00041095,30]
[392240493,1761275442795,-576.68,0.00041095,30]
[392240494,1761275442805,-500.0,0.00041095,30]
[392240495,1761275442813,-500.0,0.00041095,30]
[392240496,1761275442822,-500.0,0.00041095,30]
[392240497,1761275442831,-749.85,0.00041095,30]
[392240498,1761275442840,-594.21,0.00041095,30]
[392240499,1761275442849,-500.0,0.00041095,30]
[392240500,1761275442858,-199.42370333,0.00041095,30]
[392240501,1761275442867,-707.34,0.00041095,30]
[392240502,1761275442875,-500.0,0.00041095,30]
[392240503,1761275442884,-500.0,0.00041095,30]
[392240504,1761275442893,-500.0,0.00041095,30]
[392240505,1761275442902,-500.0,0.00041095,30]
[392240506,1761275442912,-500.0,0.00041095,30]
[392240507,1761275442921,-1411.27,0.00041095,30]
[392240508,1761275442930,-500.0,0.00041095,30]
[392240509,1761275442939,-500.0,0.00041095,30]
[392240510,1761275442948,-500.0,0.00041095,30]
[392240511,1761275442958,-778.39,0.00041095,30]
[392240512,1761275442968,-500.0,0.00041095,30]
[392240513,1761275442978,-1164.58,0.00041095,30]
[392240514,1761275442987,-751.87,0.00041095,30]
[392240515,1761275442997,-500.0,0.00041095,30]
[392240516,1761275443006,-823.83,0.00041095,30]
[392240517,1761275443017,-517.76,0.00041095,30]
[392240518,1761275443027,-502.36,0.00041095,30]
[392240519,1761275443036,-1327.0,0.00041095,30]
[392240520,1761275443046,-500.0,0.00041095,30]
[392240521,1761275443058,-500.0,0.00041095,30]
[392240522,1761275443067,-500.0,0.00041095,30]
[392240523,1761275443078,-500.0,0.00041095,30]
[392240524,1761275443088,-500.0,0.00041095,30]
[392240525,1761275443098,-623.83226474,0.00041095,30]
[392240526,1761275443108,-500.0,0.00041095,30]
[392240527,1761275443119,-500.0,0.00041095,30]
[392240528,1761275443129,-500.0,0.00041095,30]
[392240529,1761275443139,-1316.52,0.00041095,30]
[392240530,1761275443151,-500.0,0.00041095,30]
[392240531,1761275443163,-559.44,0.00041095,30]
[392240532,1761275443172,-500.0,0.00041095,30]
[392240533,1761275443184,-500.0,0.00041095,30]
[392240534,1761275443194,-500.0,0.00041095,30]
[392240536,1761275443204,-500.0,0.00041095,30]
[392240537,1761275443213,-500.0,0.00041095,30]
[392240538,1761275443222,-500.0,0.00041095,30]
[392240539,1761275443231,-500.0,0.00041095,30]
[392240540,1761275443239,-805.2,0.00041095,30]
[392240541,1761275443248,-500.0,0.00041095,30]
[392240542,1761275443258,-585.31,0.00041095,30]
[392240543,1761275443267,-500.0,0.00041095,30]
[392240544,1761275443276,-446.4880523,0.00041095,30]
[392240545,1761275443284,-500.0,0.00041095,30]
[392240546,1761275443293,-660.92,0.00041095,30]
[392240547,1761275443301,-834.56,0.00041095,30]
[392240548,1761275443310,-500.0,0.00041095,30]
[392240549,1761275443319,-500.0,0.00041095,30]
[392240550,1761275443327,-500.0,0.00041095,30]
[392240551,1761275443336,-656.64,0.00041095,30]
[392240552,1761275443345,-500.0,0.00041095,30]
[392240553,1761275443354,-500.0,0.00041095,30]
[392240554,1761275443363,-500.0,0.00041095,30]
[392240555,1761275443372,-642.7,0.00041095,30]
[392240556,1761275443382,-500.0,0.00041095,30]
[392240557,1761275443391,-500.0,0.00041095,30]
[392240558,1761275443400,-1001.25,0.00041095,30]
[392240559,1761275443409,-500.0,0.00041095,30]
[392240560,1761275443419,-500.0,0.00041095,30]
[392240561,1761275443429,-500.0,0.00041095,30]
[392240562,1761275443438,-500.0,0.00041095,30]
[392240563,1761275443447,-500.0,0.00041095,30]
[392240564,1761275443456,-500.0,0.00041095,30]
[392240565,1761275443465,-910.91,0.00041095,30]
[392240566,1761275443474,-500.0,0.00041095,30]
[392240567,1761275443483,-151.0,0.00041095,120]
[392240568,1761275443492,-547.72,0.00041095,30]
[392240569,1761275443501,-500.0,0.00041095,30]
[392240570,1761275443511,-500.0,0.00041095,2]
[392240571,1761275443522,-413.33567985,0.00041095,30]
[392240572,1761275443531,-500.0,0.00041095,30]
[392240573,1761275443540,-915.94,0.00041095,30]
[392240574,1761275443550,-600.85,0.00041095,30]
[392240575,1761275443560,-509.04,0.00041095,30]
[392240576,1761275443571,-500.0,0.00041095,30]
[392240577,1761275443580,-500.0,0.00041095,30]
[392240578,1761275443589,-500.0,0.00041095,30]
[392240579,1761275443598,-500.0,0.00041095,30]
[392240580,1761275443608,-500.0,0.00041095,30]
[392240581,1761275443616,-476.23156132,0.00041095,30]
[392240582,1761275443625,-1054.71,0.00041095,30]
[392240583,1761275443635,-500.0,0.00041095,30]
[392240584,1761275443644,-500.0,0.00041095,30]
[392240585,1761275443654,-500.0,0.00041095,30]
[392240586,1761275443663,-500.0,0.00041095,30]
[392240587,1761275443673,-500.0,0.00041095,30]
[392240588,1761275443682,-539.67,0.00041095,30]
[392240589,1761275443692,-500.0,0.00041095,30]
[392240590,1761275443701,-886.51,0.00041095,30]
[392240591,1761275443710,-500.0,0.00041095,30]
[392240592,1761275443720,-500.0,0.00041095,30]
[392240593,1761275443729,-500.0,0.00041095,30]
[392240594,1761275443739,-645.61,0.00041095,30]
[392240595,1761275443748,-500.0,0.00041095,30]
[392240596,1761275443757,-500.0,0.00041095,30]
[392240597,1761275443766,-544.93458847,0.00041095,30]
[392240598,1761275443775,-531.09,0.00041095,30]
[392240599,1761275443784,-656.65,0.00041095,30]
[392240600,1761275443793,-500.0,0.00041095,30]
[392240601,1761275443802,-837.32,0.00041095,30]
[392240602,1761275443812,-500.0,0.00041095,30]
[392240603,1761275443821,-803.93,0.00041095,30]
[392240604,1761275443831,-500.0,0.00041095,30]
[392240605,1761275443840,-500.0,0.00041095,30]
[392240606,1761275443849,-500.0,0.00041095,30]
[392240607,1761275443858,-500.0,0.00041095,30]
[392240608,1761275443867,-500.0,0.00041095,30]
[392240609,1761275443876,-500.0,0.00041095,30]
[392240610,1761275443886,-892.47,0.00041095,30]
[392240611,1761275443895,-500.0,0.00041095,30]
[392240612,1761275443904,-410.21083903,0.00041095,30]
[392240613,1761275443913,-500.0,0.00041095,30]
[392240614,1761275443922,-500.0,0.00041095,30]
[392240615,1761275443931,-949.12,0.00041095,30]
[392240616,1761275443940,-500.0,0.00041095,30]
[392240617,1761275443949,-500.0,0.00041095,30]
[392240618,1761275443958,-500.0,0.00041095,30]
[392240619,1761275443967,-577.02,0.00041095,30]
[392240620,1761275443978,-601.72,0.00041095,30]
[392240621,1761275443987,-500.0,0.00041095,30]
[392240622,1761275443996,-763.93,0.00041095,30]
[392240623,1761275444005,-500.0,0.00041095,30]
[392240624,1761275444014,-500.0,0.00041095,30]
[392240625,1761275444024,-500.0,0.00041095,30]
[392240626,1761275444033,-500.0,0.00041095,30]
[392240627,1761275444042,-1036.22,0.00041095,30]
[392240628,1761275444051,-500.0,0.00041095,30]
[392240629,1761275444060,-813.02,0.00041095,30]
[392240630,1761275444070,-500.0,0.00041095,30]
[392240631,1761275444079,-500.0,0.00041095,30]
[392240632,1761275444087,-500.0,0.00041095,30]
[392240633,1761275444097,-506.33,0.00041095,30]
[392240634,1761275444106,-511.2,0.00041095,30]
[392240635,1761275444115,-500.0,0.00041095,30]
[392240636,1761275444124,-500.0,0.00041095,30]
[392240637,1761275444133,-3028.53,0.00041095,30]
[392240638,1761275444143,-500.0,0.00041095,30]
[392240639,1761275444152,-500.0,0.00041095,30]
[392240640,1761275444161,-500.0,0.00041095,30]
[392240641,1761275444171,-500.0,0.00041095,30]
[392240642,1761275444181,-507.04852528,0.00041095,30]
[392240643,1761275444190,-500.0,0.00041095,30]
[392240644,1761275444199,-1000.0,0.00041095,30]
[392240645,1761275444209,-696.97,0.00041095,30]
[392240646,1761275444218,-1130.16,0.00041095,30]
[392240647,1761275444227,-500.0,0.00041095,30]
[392240648,1761275444236,-533.14,0.00041095,30]
[392240649,1761275444245,-500.0,0.00041095,30]
[392240650,1761275444254,-475.60372048,0.00041095,30]
[392240651,1761275444263,-500.0,0.00041095,30]
[392240652,1761275444272,-500.0,0.00041095,30]
[392240653,1761275444281,-918.32,0.00041095,30]
[392240654,1761275444290,-500.0,0.00041095,30]
[392240655,1761275444299,-555.41,0.00041095,30]
[392240656,1761275444309,-500.0,0.00041095,30]
[392240657,1761275444318,-800.19,0.00041095,30]
[392240658,1761275444329,-840.07,0.00041095,30]
[392240659,1761275444338,-500.0,0.00041095,30]
[392240660,1761275444348,-500.95711835,0.00041095,30]
[392240661,1761275444358,-500.0,0.00041095,30]
[392240662,1761275444367,-500.0,0.00041095,30]
[392240663,1761275444376,-500.0,0.00041095,30]
[392240664,1761275444387,-151.0,0.00041095,120]
[392240665,1761275444398,-500.0,0.00041095,30]
[392240666,1761275444408,-500.0,0.00041095,30]
[392240667,1761275444419,-847.24,0.00041095,30]
[392240668,1761275444429,-708.71,0.00041095,30]
[392240669,1761275444439,-565.28,0.00041095,30]
[392240670,1761275444448,-555.35,0.00041095,30]
[392240671,1761275444458,-500.0,0.00041095,30]
[392240672,1761275444469,-568.28,0.00041095,30]
[392240673,1761275444480,-500.0,0.00041095,30]
[392240674,1761275444489,-772.94,0.00041095,30]
[392240675,1761275444499,-500.0,0.00041095,30]
[392240676,1761275444508,-500.0,0.00041095,30]
[392240677,1761275444518,-500.0,0.00041095,30]
[392240678,1761275444527,-500.0,0.00041095,30]
[392240679,1761275444538,-500.0,0.00041095,30]
[392240680,1761275444549,-500.0,0.00041095,30]
[392240681,1761275444559,-537.17,0.00041095,30]
[392240682,1761275444569,-645.39,0.00041095,30]
[392240683,1761275444579,-500.0,0.00041095,30]
[392240684,1761275444588,-349.04746837,0.00041095,30]
[392240685,1761275444598,-525.68104418,0.00041095,30]
[392240686,1761275444610,-500.0,0.00041095,30]
[392240687,1761275444619,-500.0,0.00041095,30]
[392240688,1761275444629,-635.97,0.00041095,30]
[392240689,1761275444640,-500.0,0.00041095,30]
[392240690,1761275444649,-500.0,0.00041095,30]
[392240691,1761275444659,-898.77,0.00041095,30]
[392240692,1761275444669,-552.20897787,0.00041095,30]
[392240693,1761275444679,-500.0,0.00041095,30]
[392240694,1761275444689,-696.54,0.00041095,30]
[392240695,1761275444698,-500.0,0.00041095,30]
[392240696,1761275444707,-500.0,0.00041095,30]
[392240697,1761275444716,-500.0,0.00041095,30]
[392240698,1761275444726,-500.0,0.00041095,30]
[392240699,1761275444735,-500.0,0.00041095,30]
[392240700,1761275444745,-500.0,0.00041095,30]
[392240701,1761275444754,-500.0,0.00041095,30]
[392240702,1761275444764,-500.0,0.00041095,30]
[392240703,1761275444773,-500.0,0.00041095,30]
[392240704,1761275444783,-500.0,0.00041095,30]
[392240705,1761275444793,-500.0,0.00041095,30]
[392240706,1761275444805,-500.0,0.00041095,30]
[392240707,1761275444815,-500.0,0.00041095,30]
[392240708,1761275444826,-500.0,0.00041095,30]
[392240709,1761275444836,-500.0,0.00041095,30]
[392240710,1761275444846,-598.10478301,0.00041095,30]
[392240711,1761275444855,-500.0,0.00041095,30]
[392240712,1761275444866,-500.0,0.00041095,30]
[392240713,1761275444876,-500.0,0.00041095,30]
[392240714,1761275444886,-500.0,0.00041095,30]
[392240715,1761275444895,-730.36,0.00041095,30]
[392240716,1761275444905,-500.0,0.00041095,30]
[392240717,1761275444914,-500.0,0.00041095,30]
[392240718,1761275444923,-500.0,0.00041095,30]
[392240719,1761275444933,-500.0,0.00041095,30]
[392240720,1761275444943,-849.23,0.00041095,30]
[392240721,1761275444953,-500.0,0.00041095,30]
[392240722,1761275444962,-500.0,0.00041095,30]
[392240723,1761275444971,-500.0,0.00041095,30]
[392240724,1761275444982,-809.64,0.00041095,30]
[392240725,1761275444991,-500.0,0.00041095,30]
[392240726,1761275445001,-500.0,0.00041095,30]
[392240727,1761275445010,-500.0,0.00041095,30]
[392240728,1761275445020,-500.0,0.00041095,30]
[392240729,1761275445031,-500.0,0.00041095,30]
[392240730,1761275445042,-500.0,0.00041095,30]
[392240731,1761275445053,-500.0,0.00041095,30]
[392240732,1761275445063,-678.8,0.00041095,30]
[392240733,1761275445073,-830.15,0.00041095,30]
[392240734,1761275445084,-500.0,0.00041095,30]
[392240735,1761275445093,-500.0,0.00041095,30]
[392240736,1761275445102,-556.81,0.00041095,30]
[392240737,1761275445111,-500.0,0.00041095,30]
[392240738,1761275445121,-678.76,0.00041095,30]
[392240739,1761275445130,-507.62,0.00041095,30]
[392240740,1761275445141,-165.0652,0.00041095,120]
[392240741,1761275445152,-500.0,0.00041095,30]
[392240742,1761275445163,-500.0,0.00041095,30]
[392240743,1761275445174,-500.0,0.00041095,30]
[392240744,1761275445184,-500.0,0.00041095,30]
[392240745,1761275445194,-500.0,0.00041095,30]
[392240746,1761275445203,-500.0,0.00041095,30]
[392240747,1761275445213,-265.411361,0.00041095,120]
[392240748,1761275445222,-500.0,0.00041095,30]
[392240749,1761275445231,-500.0,0.00041095,30]
[392240750,1761275445241,-500.0,0.00041095,30]
[392240751,1761275445250,-628.69,0.00041095,30]
[392240752,1761275445258,-585.35,0.00041095,30]
[392240753,1761275445268,-500.0,0.00041095,30]
[392240754,1761275445277,-500.0,0.00041095,30]
[392240755,1761275445287,-835.26,0.00041095,30]
[392240756,1761275445295,-169.77,0.00041095,30]
[392240757,1761275445304,-500.0,0.00041095,30]
[392240758,1761275445314,-500.0,0.00041095,30]
[392240759,1761275445323,-500.0,0.00041095,30]
[392240760,1761275445332,-500.0,0.00041095,30]
[392240761,1761275445341,-255.39363225,0.00041095,30]
[392240762,1761275445350,-500.0,0.00041095,30]
[392240763,1761275445360,-500.0,0.00041095,30]
[392240764,1761275445369,-500.0,0.00041095,30]
[392240765,1761275445379,-594.86,0.00041095,30]
[392240766,1761275445388,-500.0,0.00041095,30]
[392240767,1761275445397,-502.03893264,0.00041095,30]
[392240768,1761275445407,-500.0,0.00041095,30]
[392240769,1761275445417,-500.0,0.00041095,30]
[392240770,1761275445429,-500.0,0.00041095,30]
[392240771,1761275445439,-151.0,0.00041095,120]
[392240772,1761275445449,-500.0,0.00041095,30]
[392240773,1761275445458,-500.0,0.00041095,30]
[392240774,1761275445469,-500.0,0.00041095,30]
[392240775,1761275445478,-500.0,0.00041095,30]
[392240776,1761275445488,-500.0,0.00041095,30]
[392240777,1761275445498,-500.0,0.00041095,30]
[392240778,1761275445507,-500.0,0.00041095,30]
[392240779,1761275445516,-747.46,0.00041095,30]
[392240780,1761275445525,-837.09,0.00041095,30]
[392240781,1761275445535,-743.49,0.00041095,30]
[392240782,1761275445545,-500.0,0.00041095,30]
[392240783,1761275445555,-500.0,0.00041095,30]
[392240784,1761275445564,-500.0,0.00041095,30]
[392240785,1761275445574,-500.0,0.00041095,30]
[392240786,1761275445583,-615.39023952,0.00041095,30]
[392240787,1761275445593,-500.0,0.00041095,30]
[392240788,1761275445603,-500.0,0.00041095,30]
[392240790,1761275445613,-734.03,0.00041095,30]
[392240792,1761275445623,-502.22313781,0.00041095,30]
[392240793,1761275445632,-500.0,0.00041095,30]
[392240794,1761275445642,-500.0,0.00041095,30]
[392240795,1761275445651,-500.0,0.00041095,30]
[392240796,1761275445662,-712.53,0.00041095,30]
[392240797,1761275445671,-500.0,0.00041095,30]
[392240798,1761275445681,-500.0,0.00041095,30]
[392240799,1761275445691,-500.0,0.00041095,30]
[392240800,1761275445701,-500.0,0.00041095,30]
[392240801,1761275445710,-500.0,0.00041095,30]
[392240802,1761275445719,-882.15,0.00041095,30]
[392240803,1761275445729,-500.0,0.00041095,30]
[392240804,1761275445738,-500.0,0.00041095,30]
[392240805,1761275445748,-500.0,0.00041095,30]
[392240806,1761275445758,-500.0,0.00041095,30]
[392240807,1761275445767,-500.0,0.00041095,30]
[392240808,1761275445776,-500.0,0.00041095,30]
[392240809,1761275445786,-831.38,0.00041095,30]
[392240810,1761275445795,-539.83,0.00041095,30]
[392240811,1761275445804,-500.0,0.00041095,30]
[392240812,1761275445814,-500.0,0.00041095,30]
[392240813,1761275445823,-500.0,0.00041095,30]
[392240814,1761275445833,-500.0,0.00041095,30]
[392240815,1761275445842,-500.0,0.00041095,30]
[392240816,1761275445852,-583.33,0.00041095,30]
[392240817,1761275445862,-500.0,0.00041095,30]
[392240818,1761275445871,-500.0,0.00041095,30]
[392240819,1761275445881,-500.0,0.00041095,30]
[392240820,1761275445891,-500.0,0.00041095,30]
[392240821,1761275445900,-580.93000748,0.00041095,30]
[392240822,1761275445910,-500.0,0.00041095,30]
[392240823,1761275445919,-522.51,0.00041095,30]
[392240824,1761275445929,-500.0,0.00041095,30]
[392240825,1761275445938,-636.57,0.00041095,30]
[392240826,1761275445948,-500.0,0.00041095,30]
[392240827,1761275445957,-1220.75,0.00041095,30]